bitfinex-derivatives/quotes_BTCF0:USTF0_20251220
["timestamp","ask_amount","ask_price","bid_price","bid_amount"]
[1766211063293,0.02618787,88441.0,88428.0,0.00016968]
[1766211063495,0.02832,88443.0,88428.0,0.00016968]
[1766211063694,0.02618828,88442.0,88428.0,0.00016968]
[1766211063895,0.02618828,88441.0,88428.0,0.00016968]
[1766211064097,0.02832,88443.0,88428.0,0.00016968]
[1766211064296,0.02618821,88442.0,88428.0,0.00016968]
[1766211064497,0.02618821,88441.0,88428.0,0.00016968]
[1766211064691,0.02832,88443.0,88428.0,0.00016968]
[1766211064899,0.02618969,88442.0,88428.0,0.00016968]
[1766211065194,0.02618969,88441.0,88428.0,0.00016968]
[1766211065396,0.02832,88443.0,88428.0,0.00016968]
[1766211065596,0.02619151,88442.0,88428.0,0.00016968]
[1766211065798,0.02619151,88441.0,88428.0,0.00016968]
[1766211065995,0.02832,88443.0,88428.0,0.00016968]
[1766211066194,0.02619254,88442.0,88428.0,0.00016968]
[1766211066400,0.02619254,88441.0,88428.0,0.00016968]
[1766211066599,0.02832,88443.0,88428.0,0.00016968]
[1766211066797,0.02619596,88442.0,88428.0,0.00016968]
[1766211067099,0.02619596,88441.0,88428.0,0.00016968]
[1766211067296,0.02832,88443.0,88428.0,0.00016968]
[1766211067496,0.0261959,88442.0,88428.0,0.00016968]
[1766211067694,0.0261959,88441.0,88428.0,0.00016968]
[1766211067895,0.02832,88443.0,88428.0,0.00016968]
[1766211068099,0.0261959,88442.0,88428.0,0.00016968]
[1766211068300,0.02832,88443.0,88428.0,0.00016968]
[1766211068301,0.0261959,88441.0,88428.0,0.00016968]
[1766211068498,0.02832,88443.0,88428.0,0.00016968]
[1766211068801,0.02619593,88442.0,88428.0,0.00016968]
[1766211069099,0.02619593,88441.0,88428.0,0.00016968]
[1766211069301,0.02832,88443.0,88428.0,0.00016968]
[1766211069502,0.02619481,88442.0,88428.0,0.00016968]
[1766211069700,0.02619481,88441.0,88428.0,0.00016968]
[1766211069890,0.02832,88443.0,88428.0,0.00016968]
[1766211070089,0.02619471,88442.0,88428.0,0.00016968]
[1766211070298,0.02619471,88441.0,88428.0,0.00016968]
[1766211070506,0.03750779,88440.0,88428.0,0.00016968]
[1766211070702,0.0113133,88440.0,88428.0,0.00016968]
[1766211070997,0.0113144,88432.0,88420.0,0.15016151]
[1766211071403,0.0113139,88436.0,88420.0,0.15016151]
[1766211072802,0.00016968,88437.0,88420.0,0.15016151]
[1766211074401,0.01148338,88437.0,88420.0,0.15016151]
[1766211076104,0.01148338,88437.0,88419.0,0.00524968]
[1766211076306,0.00016968,88437.0,88420.0,0.15016151]
[1766211078894,0.00016968,88437.0,88419.0,0.00524968]
[1766211079095,0.00016968,88437.0,88420.0,0.15016151]
[1766211079803,0.00016968,88437.0,88421.0,0.0113157]
[1766211080900,0.00016968,88437.0,88424.0,0.0113152]
[1766211081807,0.00016968,88437.0,88420.0,0.16147721]
[1766211083201,0.00016968,88437.0,88419.0,0.00524968]
[1766211083403,0.00016968,88437.0,88420.0,0.15016151]
[1766211083815,0.00016968,88437.0,88419.0,0.00524968]
[1766211084005,0.00016968,88437.0,88420.0,0.15016151]
[1766211087417,0.00016968,88437.0,88427.0,0.15017285]
[1766211087898,0.00016968,88437.0,88424.0,0.02832]
[1766211095012,0.0113138,88436.0,88424.0,0.02832]
[1766211095219,0.0113154,88424.0,88419.0,8e-08]
[1766211095416,0.0113158,88421.0,88394.0,0.01137278]
[1766211095612,0.0113158,88421.0,88410.0,0.15017285]
[1766211095812,0.0113153,88425.0,88410.0,0.15017285]
[1766211096419,0.00016968,88426.0,88410.0,0.15017285]
[1766211096812,0.00016968,88426.0,88416.0,0.15017285]
[1766211097211,0.00152,88439.0,88416.0,0.311662]
[1766211097417,0.02766656,88438.0,88429.0,0.15017285]
[1766211097612,0.00152,88438.0,88420.0,0.15017285]
[1766211098413,0.00168968,88438.0,88420.0,0.15034253]
[1766211100822,0.00168968,88438.0,88428.0,0.15017285]
[1766211101411,0.00168968,88438.0,88428.0,0.15016731]
[1766211108928,0.02832,88445.0,88428.0,0.15016731]
[1766211109129,0.02615708,88444.0,88430.0,0.15016731]
[1766211109319,0.02615708,88443.0,88430.0,0.15016731]
[1766211109519,0.02615708,88442.0,88430.0,0.15016731]
[1766211109719,0.02832,88445.0,88430.0,0.15016731]
[1766211109720,0.02615708,88441.0,88430.0,0.15016731]
[1766211109919,0.02832,88445.0,88430.0,0.15016731]
[1766211110121,0.02615723,88444.0,88430.0,0.15016731]
[1766211110322,0.02615723,88443.0,88430.0,0.15016731]
[1766211110618,0.02615723,88442.0,88430.0,0.15016731]
[1766211110930,0.02615723,88441.0,88430.0,0.15016731]
[1766211111127,0.02832,88445.0,88430.0,0.15016731]
[1766211111327,0.02615746,88444.0,88430.0,0.15016731]
[1766211111526,0.02615746,88443.0,88430.0,0.15016731]
[1766211111726,0.02615746,88442.0,88430.0,0.15016731]
[1766211111925,0.02615746,88441.0,88430.0,0.15016731]
[1766211112128,0.02832,88445.0,88430.0,0.15016731]
[1766211112331,0.02615772,88444.0,88430.0,0.15016731]
[1766211112530,0.02615772,88443.0,88430.0,0.15016731]
[1766211112732,0.02615772,88442.0,88430.0,0.15016731]
[1766211118037,0.02615772,88441.0,88430.0,0.15016731]
[1766211118238,0.02832,88445.0,88430.0,0.15016731]
[1766211118437,0.02615992,88444.0,88430.0,0.15016731]
[1766211118738,0.02615992,88443.0,88430.0,0.15016731]
[1766211118939,0.02832,88445.0,88430.0,0.15016731]
[1766211118940,0.02615992,88442.0,88430.0,0.15016731]
[1766211119238,0.02615992,88441.0,88430.0,0.15016731]
[1766211119426,0.02832,88445.0,88430.0,0.15016731]
[1766211119624,0.03747299,88444.0,88430.0,0.15016731]
[1766211119829,0.02616019,88443.0,88430.0,0.15016731]
[1766211120030,0.02616019,88442.0,88430.0,0.15016731]
[1766211120227,0.02832,88445.0,88430.0,0.15016731]
[1766211120427,0.02615973,88444.0,88430.0,0.15016731]
[1766211120640,0.02615973,88443.0,88430.0,0.15016731]
[1766211120833,0.02615973,88442.0,88430.0,0.15016731]
[1766211121034,0.02615973,88441.0,88430.0,0.15016731]
[1766211121231,0.02832,88445.0,88430.0,0.15016731]
[1766211121540,0.0261597,88444.0,88430.0,0.15016731]
[1766211121737,0.06099934,88459.0,88434.0,0.15016731]
[1766211121943,0.15016731,88480.0,88449.0,0.15016731]
[1766211122240,0.0113107,88461.0,88449.0,0.15016731]
[1766211122431,0.02832,88460.0,88449.0,0.15016731]
[1766211122835,0.00988,88460.0,88449.0,0.15016731]
[1766211123041,0.02832,88459.0,88449.0,0.15016731]
[1766211123732,0.00986,88459.0,88449.0,0.15016731]
[1766211123933,0.0113092,88472.0,88449.0,0.15016731]
[1766211123934,0.00588,88472.0,88449.0,0.15016731]
[1766211124133,0.00588,88472.0,88460.0,0.15016731]
[1766211124338,0.02832,88473.0,88460.0,0.15016731]
[1766211124942,0.15016731,88490.0,88460.0,0.15016731]
[1766211125146,0.0113077,88484.0,88470.0,0.15016731]
[1766211125444,0.02832,88489.0,88470.0,0.15016731]
[1766211126140,0.0113071,88488.0,88470.0,0.15016731]
[1766211126446,0.0113077,88484.0,88470.0,0.15016731]
[1766211128843,0.0113072,88488.0,88470.0,0.15016731]
[1766211129448,0.02832,88489.0,88470.0,0.15016731]
[1766211130146,0.0113079,88483.0,88470.0,0.15016731]
[1766211130647,0.0113083,88480.0,88470.0,0.15016731]
[1766211130837,0.0113092,88473.0,88467.0,0.02832]
[1766211131036,0.0113099,88467.0,88460.0,1e-08]
[1766211131241,0.0113093,88472.0,88461.0,0.02832]
[1766211131641,0.0113087,88476.0,88461.0,0.02832]
[1766211132044,0.0113087,88476.0,88457.0,0.00016956]
[1766211132238,0.0113087,88476.0,88460.0,0.15016731]
[1766211132437,0.0113087,88476.0,88461.0,0.02832]
[1766211132644,0.17496731,88480.0,88461.0,0.02832]
[1766211134238,0.0113083,88479.0,88461.0,0.02832]
[1766211135144,0.17496731,88480.0,88461.0,0.02832]
[1766211136749,0.0248,88480.0,88461.0,0.02832]
[1766211136948,0.17496731,88480.0,88461.0,0.02832]
[1766211139351,0.0248,88480.0,88470.0,0.15016731]
[1766211139853,0.0113039,88514.0,88470.0,0.15016731]
[1766211139854,0.0113039,88514.0,88470.0,0.16147671]
[1766211140151,0.0113065,88493.0,88479.0,0.00016956]
[1766211140446,0.0113058,88499.0,88480.0,0.15016731]
[1766211140634,0.0113061,88497.0,88479.0,0.00016956]
[1766211140838,0.0113061,88497.0,88480.0,0.15016731]
[1766211141243,0.02832,88498.0,88480.0,0.15016731]
[1766211144359,0.02832,88498.0,88480.0,0.16147541]
[1766211145248,0.02832,88498.0,88480.0,0.15016731]
[1766211145451,0.02832,88498.0,88480.0,0.16147541]
[1766211145641,0.02832,88498.0,88480.0,0.15016731]
[1766211147841,0.02832,88498.0,88480.0,0.16147541]
[1766211148242,0.02832,88498.0,88480.0,0.15016731]
[1766211148648,0.02832,88498.0,88481.0,0.011308]
[1766211148950,0.02832,88498.0,88480.0,0.15016731]
[1766211149346,0.02832,88498.0,88480.0,0.14996872]
[1766211150555,0.02832,88498.0,88481.0,0.02832]
[1766211154640,0.0369476,88497.0,88481.0,0.02832]
[1766211154854,0.0113061,88497.0,88481.0,0.02832]
[1766211155045,0.0113061,88497.0,88479.0,0.00016956]
[1766211155046,0.02832,88498.0,88479.0,0.00016956]
[1766211155250,0.14996872,88490.0,88456.0,1.44208]
[1766211155442,0.0113087,88476.0,88450.0,0.14996872]
[1766211155641,0.02832,88477.0,88450.0,0.14996872]
[1766211155843,0.0113089,88475.0,88451.0,0.02832]
[1766211156047,0.02832,88477.0,88451.0,0.0396318]
[1766211156242,0.02832,88477.0,88455.0,0.00016956]
[1766211156449,0.00016925,88473.0,88455.0,0.00016956]
[1766211158656,0.00016925,88473.0,88456.0,0.0113112]
[1766211161061,0.00016925,88473.0,88461.0,0.0113105]
[1766211161660,0.00516,88477.0,88464.0,0.0113101]
[1766211162767,0.0113073,88487.0,88467.0,0.0113098]
[1766211162954,0.004,88482.0,88460.0,0.14996872]
[1766211163759,1.44212,88497.0,88460.0,0.14996872]
[1766211163760,0.0113067,88492.0,88466.0,0.0113099]
[1766211163959,0.03045379,88491.0,88466.0,0.0113099]
[1766211164162,0.02569379,88490.0,88466.0,0.0113099]
[1766211164456,0.02569379,88489.0,88466.0,0.0113099]
[1766211164657,0.00476,88491.0,88466.0,0.0113099]
[1766211164859,0.02569517,88490.0,88466.0,0.0113099]
[1766211165057,0.02569517,88489.0,88466.0,0.0113099]
[1766211165262,0.00476,88491.0,88466.0,0.0113099]
[1766211165567,0.02569652,88490.0,88466.0,0.0113099]
[1766211165767,0.02569652,88489.0,88466.0,0.0113099]
[1766211166067,0.02569652,88488.0,88466.0,0.0113099]
[1766211166266,0.0113071,88489.0,88466.0,0.0113099]
[1766211166470,0.02569776,88488.0,88466.0,0.0113099]
[1766211166673,0.02569813,88487.0,88466.0,0.0113099]
[1766211166864,0.0113071,88489.0,88466.0,0.0113099]
[1766211167064,0.02569798,88488.0,88466.0,0.0113099]
[1766211167264,0.0113071,88489.0,88466.0,0.0113099]
[1766211167463,0.02569935,88488.0,88466.0,0.0113099]
[1766211167665,0.0113071,88489.0,88466.0,0.0113099]
[1766211167965,0.02569934,88488.0,88466.0,0.0113099]
[1766211168266,0.0113071,88489.0,88466.0,0.0113099]
[1766211168462,0.02570083,88488.0,88466.0,0.0113099]
[1766211168667,0.0113073,88487.0,88462.0,0.0113104]
[1766211170169,0.0113077,88484.0,88460.0,0.16134176]
[1766211170369,0.0113077,88484.0,88461.0,0.02832]
[1766211170771,0.0113072,88488.0,88461.0,0.02832]
[1766211171067,0.02570273,88487.0,88462.0,0.0113104]
[1766211171276,0.0113072,88488.0,88462.0,0.0113104]
[1766211171459,0.02570219,88487.0,88462.0,0.0113104]
[1766211171765,0.0113072,88488.0,88462.0,0.0113104]
[1766211172163,0.0113072,88488.0,88465.0,0.01131]
[1766211172762,0.0113072,88488.0,88461.0,0.0396306]
[1766211174171,0.0113075,88485.0,88461.0,0.0396306]
[1766211175371,0.0113071,88489.0,88461.0,0.0396306]
[1766211175583,0.0113073,88487.0,88464.0,0.0113102]
[1766211175774,0.02832,88486.0,88461.0,0.02832]
[1766211176473,0.02832,88486.0,88466.0,0.0113099]
[1766211177169,0.02832,88486.0,88461.0,0.02832]
[1766211177170,0.0396274,88486.0,88462.0,0.0113104]
[1766211177970,0.0396274,88486.0,88463.0,0.02832]
[1766211178271,0.0396274,88486.0,88464.0,0.0113102]
[1766211181170,0.02832,88486.0,88467.0,0.0113098]
[1766211181478,0.02832,88486.0,88463.0,0.0396302]
[1766211182878,0.02832,88486.0,88466.0,0.0113099]
[1766211183968,0.0113076,88484.0,88463.0,0.02832]
[1766211184173,0.02832,88486.0,88464.0,0.0113102]
[1766211184874,0.0113075,88485.0,88464.0,0.0113102]
[1766211186876,0.02832,88486.0,88464.0,0.0113102]
[1766211187177,0.02576036,88485.0,88464.0,0.0113102]
[1766211187366,0.02576036,88484.0,88464.0,0.0113102]
[1766211187565,0.0395874,88486.0,88464.0,0.0113102]
[1766211187772,0.02576163,88485.0,88464.0,0.0113102]
[1766211187974,0.0395874,88486.0,88464.0,0.0113102]
[1766211188277,0.02576164,88485.0,88464.0,0.0113102]
[1766211188480,0.02576164,88484.0,88464.0,0.0113102]
[1766211188672,0.0395874,88486.0,88464.0,0.0113102]
[1766211188873,0.02576318,88485.0,88464.0,0.0113102]
[1766211189073,0.02576318,88484.0,88464.0,0.0113102]
[1766211189275,0.0113077,88484.0,88463.0,0.02832]
[1766211192581,0.02828,88486.0,88463.0,0.02832]
[1766211192782,0.02576769,88485.0,88464.0,0.0113102]
[1766211192983,0.02576769,88484.0,88464.0,0.0113102]
[1766211193182,0.02828,88486.0,88464.0,0.0113102]
[1766211193483,0.02576769,88485.0,88464.0,0.0113102]
[1766211193678,0.02576769,88484.0,88464.0,0.0113102]
[1766211193881,0.0113075,88485.0,88464.0,0.0113102]
[1766211194080,0.02576769,88484.0,88464.0,0.0113102]
[1766211194275,0.0113075,88485.0,88464.0,0.0113102]
[1766211194475,0.02576771,88484.0,88464.0,0.0113102]
[1766211194779,0.0113075,88485.0,88464.0,0.0113102]
[1766211194975,0.02576771,88484.0,88464.0,0.0113102]
[1766211195181,0.0113075,88485.0,88464.0,0.0113102]
[1766211195382,0.02576798,88484.0,88464.0,0.0113102]
[1766211195591,0.0113075,88485.0,88464.0,0.0113102]
[1766211195781,0.02576799,88484.0,88464.0,0.0113102]
[1766211195982,0.0113075,88485.0,88464.0,0.0113102]
[1766211196282,0.0113079,88483.0,88463.0,0.02832]
[1766211200782,0.02828,88486.0,88463.0,0.02832]
[1766211200992,0.02576812,88485.0,88463.0,0.0396303]
[1766211201288,0.02576812,88484.0,88463.0,0.0396303]
[1766211201488,0.02576812,88483.0,88463.0,0.0396303]
[1766211201687,0.02828,88486.0,88463.0,0.0396303]
[1766211201888,0.02576896,88485.0,88463.0,0.0396303]
[1766211202089,0.02576896,88484.0,88463.0,0.0396303]
[1766211202285,0.02576896,88483.0,88463.0,0.0396303]
[1766211202491,0.0113075,88485.0,88463.0,0.0396303]
[1766211202791,0.02576894,88484.0,88463.0,0.0396303]
[1766211202986,0.02576894,88483.0,88463.0,0.0396303]
[1766211203187,0.0113075,88485.0,88463.0,0.0396303]
[1766211203386,0.02576892,88484.0,88463.0,0.0396303]
[1766211203588,0.02576892,88483.0,88463.0,0.0396303]
[1766211203792,0.0113075,88485.0,88463.0,0.0396303]
[1766211203984,0.02576892,88484.0,88463.0,0.0396303]
[1766211204185,0.0113075,88485.0,88463.0,0.0396303]
[1766211204386,0.02576892,88484.0,88463.0,0.0396303]
[1766211204691,0.0113075,88485.0,88463.0,0.0396303]
[1766211204893,0.02576892,88484.0,88463.0,0.0396303]
[1766211205093,0.0113075,88485.0,88463.0,0.0396303]
[1766211205393,0.02576909,88484.0,88463.0,0.0396303]
[1766211205691,0.0113075,88485.0,88463.0,0.0396303]
[1766211205893,0.02576909,88484.0,88463.0,0.02832]
[1766211206093,0.0113075,88485.0,88463.0,0.02832]
[1766211206392,0.02576908,88484.0,88463.0,0.02832]
[1766211206693,0.0113075,88485.0,88463.0,0.02832]
[1766211206892,0.02576908,88484.0,88463.0,0.02832]
[1766211207093,0.0113075,88485.0,88463.0,0.02832]
[1766211207392,0.02576915,88484.0,88463.0,0.02832]
[1766211207586,0.0113075,88485.0,88463.0,0.02832]
[1766211207787,0.02576915,88484.0,88463.0,0.02832]
[1766211207987,0.0113075,88485.0,88463.0,0.02832]
[1766211208187,0.02576915,88484.0,88463.0,0.02832]
[1766211208486,0.0113075,88485.0,88463.0,0.02832]
[1766211208682,0.02576913,88484.0,88463.0,0.02832]
[1766211208883,0.0113075,88485.0,88463.0,0.02832]
[1766211209083,0.02576913,88484.0,88463.0,0.02832]
[1766211209293,0.0113075,88485.0,88463.0,0.02832]
[1766211209490,0.02576916,88484.0,88463.0,0.02832]
[1766211209689,0.0113075,88485.0,88463.0,0.02832]
[1766211209894,0.02576916,88484.0,88463.0,0.02832]
[1766211210193,0.0113075,88485.0,88463.0,0.02832]
[1766211210387,0.02576918,88484.0,88463.0,0.02832]
[1766211210593,0.0113075,88485.0,88463.0,0.02832]
[1766211210781,0.02576918,88484.0,88463.0,0.02832]
[1766211211094,0.0113075,88485.0,88463.0,0.02832]
[1766211211394,0.02576916,88484.0,88470.0,0.15002577]
[1766211211693,0.0395874,88486.0,88470.0,0.15002577]
[1766211211895,0.02576916,88485.0,88470.0,0.15002577]
[1766211212085,0.02576916,88484.0,88470.0,0.15002577]
[1766211212285,0.0395874,88486.0,88470.0,0.15002577]
[1766211212487,0.02576917,88485.0,88470.0,0.15002577]
[1766211212784,0.02576917,88484.0,88470.0,0.15002577]
[1766211212985,0.0395874,88486.0,88470.0,0.15002577]
[1766211213192,0.02576917,88485.0,88470.0,0.15002577]
[1766211213393,0.02576917,88484.0,88470.0,0.15002577]
[1766211213590,0.02576917,88483.0,88470.0,0.15002577]
[1766211213794,0.0395874,88486.0,88470.0,0.15002577]
[1766211213997,0.02576951,88485.0,88470.0,0.15002577]
[1766211214194,0.02576951,88484.0,88470.0,0.15002577]
[1766211214395,0.02576951,88483.0,88470.0,0.15002577]
[1766211214595,0.0395874,88486.0,88470.0,0.15002577]
[1766211214795,0.0113077,88484.0,88470.0,0.15002577]
[1766211215297,0.02575092,88483.0,88470.0,0.15002577]
[1766211215499,0.0113077,88484.0,88470.0,0.15002577]
[1766211215698,0.02575093,88483.0,88470.0,0.15002577]
[1766211215898,0.0113077,88484.0,88470.0,0.15002577]
[1766211216100,0.02575093,88483.0,88470.0,0.15002577]
[1766211216402,0.0113077,88484.0,88470.0,0.15002577]
[1766211216698,0.02575107,88483.0,88470.0,0.15002577]
[1766211216899,0.0113077,88484.0,88470.0,0.15002577]
[1766211217098,0.02575104,88483.0,88470.0,0.15002577]
[1766211217298,0.0113077,88484.0,88470.0,0.15002577]
[1766211217499,0.02575125,88483.0,88470.0,0.15002577]
[1766211217797,0.0113077,88484.0,88470.0,0.15002577]
[1766211217994,0.02828,88486.0,88470.0,0.15002577]
[1766211219103,0.0113075,88485.0,88470.0,0.15002577]
[1766211220797,0.02828,88486.0,88470.0,0.14998577]
[1766211221003,0.03705991,88485.0,88470.0,0.14998577]
[1766211221203,0.02828,88484.0,88470.0,0.14998577]
[1766211222100,0.0113078,88483.0,88470.0,0.14998577]
[1766211223005,0.0113082,88480.0,88470.0,0.14998577]
[1766211226607,0.0395877,88484.0,88470.0,0.14998577]
[1766211226810,0.011308,88481.0,88470.0,0.14998577]
[1766211227613,0.02828,88484.0,88470.0,0.14998577]
[1766211231219,0.02575021,88483.0,88470.0,0.14998577]
[1766211231518,0.02828,88484.0,88470.0,0.14998577]
[1766211231718,0.02575021,88483.0,88470.0,0.14998577]
[1766211232014,0.02828,88484.0,88470.0,0.14998577]
[1766211232215,0.02575021,88483.0,88470.0,0.14998577]
[1766211232410,0.02828,88484.0,88470.0,0.14998577]
[1766211233020,0.02828,88483.0,88470.0,0.14998577]
[1766211237321,0.02828,88483.0,88470.0,0.15002108]
[1766211241125,0.0395879,88483.0,88467.0,0.02828]
[1766211241325,0.0113083,88479.0,88467.0,0.02828]
[1766211242019,0.0113091,88474.0,88463.0,0.02828]
[1766211242214,0.15002108,88480.0,88455.0,0.00016956]
[1766211242215,0.0113092,88473.0,88461.0,0.02796]
[1766211244529,0.0113087,88477.0,88461.0,0.02796]
[1766211252136,0.15002108,88480.0,88461.0,0.02796]
[1766211252335,0.16132928,88480.0,88461.0,0.02796]
[1766211252924,0.16132928,88480.0,88460.0,0.15002108]
[1766211253533,0.0113082,88480.0,88460.0,0.15002108]
[1766211253732,0.16132928,88480.0,88460.0,0.15002108]
[1766211258840,0.15002108,88480.0,88460.0,0.15002108]
[1766211259040,0.02828,88483.0,88462.0,0.0113105]
[1766211259839,0.15002108,88490.0,88470.0,0.15002108]
[1766211260035,0.05411438,88489.0,88470.0,0.15002108]
[1766211260339,0.02583438,88488.0,88470.0,0.15002108]
[1766211260541,0.02583438,88487.0,88470.0,0.15002108]
[1766211260740,0.02583438,88486.0,88470.0,0.15002108]
[1766211260939,0.02828,88489.0,88470.0,0.15002108]
[1766211261240,0.02583306,88488.0,88470.0,0.15002108]
[1766211261437,0.02583306,88487.0,88470.0,0.15002108]
[1766211261641,0.02828,88489.0,88470.0,0.15002108]
[1766211261642,0.02583306,88486.0,88470.0,0.15002108]
[1766211261940,0.02828,88489.0,88470.0,0.15002108]
[1766211262140,0.02583271,88488.0,88470.0,0.15002108]
[1766211262438,0.02583271,88487.0,88470.0,0.15002108]
[1766211262640,0.02583271,88486.0,88470.0,0.15002108]
[1766211262842,0.0258327,88485.0,88470.0,0.15002108]
[1766211263038,0.0113073,88488.0,88470.0,0.15002108]
[1766211263239,0.02583275,88487.0,88470.0,0.15002108]
[1766211263439,0.02583275,88486.0,88470.0,0.15002108]
[1766211263640,0.02583275,88485.0,88470.0,0.15002108]
[1766211263834,0.0113073,88488.0,88470.0,0.15002108]
[1766211264038,0.0113074,88486.0,88470.0,0.15002108]
[1766211264237,0.02583266,88485.0,88470.0,0.15002108]
[1766211264438,0.0113074,88486.0,88470.0,0.15002108]
[1766211264639,0.02583284,88485.0,88470.0,0.15002108]
[1766211264839,0.0113074,88486.0,88470.0,0.15002108]
[1766211265039,0.0258328,88485.0,88470.0,0.15002108]
[1766211265243,0.02828,88489.0,88470.0,0.15002108]
[1766211265447,0.02583294,88488.0,88470.0,0.15002108]
[1766211265647,0.02583294,88487.0,88470.0,0.15002108]
[1766211265840,0.02583294,88486.0,88470.0,0.15002108]
[1766211266146,0.02583294,88485.0,88470.0,0.15002108]
[1766211266336,0.0395871,88489.0,88470.0,0.15002108]
[1766211266533,0.02583309,88488.0,88470.0,0.15002108]
[1766211266734,0.02583309,88487.0,88470.0,0.15002108]
[1766211266946,0.02583309,88486.0,88470.0,0.15002108]
[1766211267146,0.02583309,88485.0,88470.0,0.15002108]
[1766211267447,0.0395871,88489.0,88470.0,0.15002108]
[1766211267646,0.02583315,88488.0,88470.0,0.15002108]
[1766211267847,0.02583315,88487.0,88470.0,0.15002108]
[1766211268147,0.02583315,88486.0,88470.0,0.15002108]
[1766211268350,0.0395871,88489.0,88470.0,0.15002108]
[1766211268546,0.02583262,88488.0,88470.0,0.15002108]
[1766211268753,0.02583262,88487.0,88470.0,0.15002108]
[1766211269046,0.02583262,88486.0,88470.0,0.15002108]
[1766211269248,0.0395871,88489.0,88470.0,0.15002108]
[1766211269449,0.02583244,88488.0,88470.0,0.15002108]
[1766211269638,0.02583244,88487.0,88470.0,0.15002108]
[1766211269836,0.02583244,88486.0,88470.0,0.15002108]
[1766211270037,0.0395871,88489.0,88470.0,0.15002108]
[1766211270247,0.02583227,88488.0,88470.0,0.15002108]
[1766211270448,0.02583227,88487.0,88470.0,0.15002108]
[1766211270635,0.02583227,88486.0,88470.0,0.15002108]
[1766211270842,0.0395871,88489.0,88470.0,0.15002108]
[1766211271052,0.02583213,88488.0,88470.0,0.15002108]
[1766211271345,0.02583213,88487.0,88470.0,0.15002108]
[1766211271650,0.02583213,88486.0,88470.0,0.15002108]
[1766211271839,0.0395871,88489.0,88470.0,0.15002108]
[1766211272040,0.02583172,88488.0,88470.0,0.15002108]
[1766211272241,0.02583172,88487.0,88470.0,0.15002108]
[1766211272440,0.02583172,88486.0,88470.0,0.15002108]
[1766211272652,0.02828,88489.0,88470.0,0.15002108]
[1766211272851,0.02583151,88488.0,88470.0,0.15002108]
[1766211273052,0.02583151,88487.0,88470.0,0.15002108]
[1766211273255,0.02583151,88486.0,88470.0,0.15002108]
[1766211273457,0.02828,88489.0,88467.0,0.02828]
[1766211273653,0.02583131,88488.0,88467.0,0.02828]
[1766211273855,0.02583131,88487.0,88467.0,0.02828]
[1766211274054,0.02583131,88486.0,88467.0,0.02828]
[1766211274243,0.02828,88489.0,88467.0,0.02828]
[1766211274554,0.02583131,88488.0,88467.0,0.02828]
[1766211274755,0.02583131,88487.0,88467.0,0.02828]
[1766211274952,0.02583131,88486.0,88467.0,0.02828]
[1766211275250,0.02828,88489.0,88467.0,0.02828]
[1766211275556,0.02599349,88488.0,88468.0,0.0113096]
[1766211275755,0.02599349,88487.0,88468.0,0.0113096]
[1766211275952,0.02599349,88486.0,88468.0,0.0113096]
[1766211276146,0.02828,88489.0,88468.0,0.0113096]
[1766211276350,0.02599365,88488.0,88468.0,0.0113096]
[1766211276546,0.02599365,88487.0,88468.0,0.0113096]
[1766211276846,0.02599365,88486.0,88468.0,0.0113096]
[1766211277142,0.02828,88489.0,88468.0,0.0113096]
[1766211277460,0.02599391,88488.0,88468.0,0.0113096]
[1766211277650,0.02599391,88487.0,88468.0,0.0113096]
[1766211277847,0.02599391,88486.0,88468.0,0.0113096]
[1766211278046,0.02828,88489.0,88468.0,0.0113096]
[1766211278245,0.02599416,88488.0,88468.0,0.0113096]
[1766211278449,0.02599416,88487.0,88468.0,0.0113096]
[1766211278648,0.02828,88489.0,88468.0,0.0113096]
[1766211278649,0.02599416,88486.0,88468.0,0.0113096]
[1766211278852,0.02828,88489.0,88468.0,0.0113096]
[1766211279050,0.02599416,88488.0,88468.0,0.0113096]
[1766211279253,0.02599416,88487.0,88468.0,0.0113096]
[1766211279455,0.02599416,88486.0,88468.0,0.0113096]
[1766211279655,0.02828,88489.0,88468.0,0.0113096]
[1766211279856,0.02599456,88488.0,88468.0,0.0113096]
[1766211280056,0.02599456,88487.0,88472.0,0.0113091]
[1766211280359,0.02599456,88486.0,88470.0,0.1500151]
[1766211280657,0.02828,88489.0,88470.0,0.1500151]
[1766211280854,0.02599498,88488.0,88470.0,0.1500151]
[1766211281056,0.02828,88489.0,88470.0,0.1500151]
[1766211281252,0.02599524,88488.0,88471.0,0.0113093]
[1766211281454,0.0395871,88489.0,88470.0,0.1500151]
[1766211281761,0.02599434,88488.0,88470.0,0.1500151]
[1766211281958,0.0395871,88489.0,88468.0,0.0113096]
[1766211282158,0.0259943,88488.0,88468.0,0.0113096]
[1766211282358,0.0395871,88489.0,88468.0,0.0113096]
[1766211282658,0.02599431,88488.0,88468.0,0.0113096]
[1766211282857,0.0395871,88489.0,88468.0,0.0113096]
[1766211283059,0.02599431,88488.0,88468.0,0.0113096]
[1766211283359,0.0395871,88489.0,88468.0,0.0113096]
[1766211283558,0.02599451,88488.0,88468.0,0.0113096]
[1766211283760,0.0395871,88489.0,88468.0,0.0113096]
[1766211283961,0.02599451,88488.0,88468.0,0.0113096]
[1766211284158,0.0395871,88489.0,88468.0,0.0113096]
[1766211284367,0.02599473,88488.0,88468.0,0.0113096]
[1766211284561,0.0395871,88489.0,88468.0,0.0113096]
[1766211284858,0.02599473,88488.0,88468.0,0.0113096]
[1766211285058,0.0395871,88489.0,88468.0,0.0113096]
[1766211285360,0.02599511,88488.0,88468.0,0.0113096]
[1766211285548,0.0395871,88489.0,88468.0,0.0113096]
[1766211285752,0.02599511,88488.0,88468.0,0.0113096]
[1766211285948,0.0395871,88489.0,88468.0,0.0113096]
[1766211286153,0.02599511,88488.0,88468.0,0.0113096]
[1766211286364,0.0395871,88489.0,88468.0,0.0113096]
[1766211286562,0.02599568,88488.0,88468.0,0.0113096]
[1766211286863,0.0395871,88489.0,88468.0,0.0113096]
[1766211287057,0.0113073,88487.0,88468.0,0.0113096]
[1766211287858,0.02828,88489.0,88470.0,0.1500151]
[1766211288061,0.02599643,88488.0,88470.0,0.1500151]
[1766211288263,0.02828,88489.0,88470.0,0.1500151]
[1766211288454,0.0259974,88488.0,88470.0,0.1500151]
[1766211288654,0.02828,88489.0,88470.0,0.1500151]
[1766211288854,0.02599731,88488.0,88470.0,0.1500151]
[1766211289064,0.02828,88489.0,88470.0,0.1500151]
[1766211289262,0.02599818,88488.0,88470.0,0.1500151]
[1766211289463,0.02828,88489.0,88470.0,0.1500151]
[1766211289657,0.02599818,88488.0,88470.0,0.1500151]
[1766211289961,0.02828,88489.0,88470.0,0.1500151]
[1766211290161,0.02599811,88488.0,88470.0,0.1500151]
[1766211290363,0.02828,88489.0,88470.0,0.1500151]
[1766211290562,0.02599785,88488.0,88470.0,0.1500151]
[1766211290863,0.02828,88489.0,88471.0,0.0113093]
[1766211291062,0.02599785,88488.0,88471.0,0.0113093]
[1766211291260,0.02828,88489.0,88467.0,0.0395897]